bitfinex/quotes_BTCUSD_20241116
["timestamp","ask_amount","ask_price","bid_price","bid_amount"]
[1731799133880,0.10906255,90435.0,90431.0,0.221161]
[1731799134105,0.16578524,90451.0,90431.0,0.221161]
[1731799134346,0.16578524,90451.0,90425.0,0.001712]
[1731799134347,0.16578524,90441.0,90438.0,0.110572]
[1731799134585,0.110562,90447.0,90435.0,0.221153]
[1731799134794,0.221119,90449.0,90435.0,0.221153]
[1731799134795,0.21962555,90446.0,90440.0,0.11057]
[1731799135057,0.21962555,90446.0,90439.0,0.110571]
[1731799135058,0.21962655,90446.0,90439.0,0.110571]
[1731799135296,0.221094,90460.0,90425.0,0.222887]
[1731799135297,0.110549,90458.0,90452.0,0.110555]
[1731799135511,0.16578524,90454.0,90450.0,0.110557]
[1731799135728,0.10906255,90453.0,90449.0,0.110558]
[1731799135938,0.10906255,90453.0,90448.0,0.11056]
[1731799136390,0.21961755,90453.0,90447.0,0.110561]
[1731799136634,0.221082,90464.0,90441.0,0.16578524]
[1731799136879,0.221082,90464.0,90439.0,0.0816]
[1731799136880,0.10906255,90463.0,90439.0,0.0816]
[1731799137104,0.10906255,90463.0,90461.0,0.110544]
[1731799137317,0.10906255,90463.0,90439.0,0.0816]
[1731799137562,0.10906255,90463.0,90458.0,0.110547]
[1731799137802,0.10906255,90463.0,90439.0,0.0816]
[1731799138040,0.10906255,90463.0,90444.0,0.221131]
[1731799138283,0.10906255,90463.0,90452.0,0.221111]
[1731799138497,0.221077,90466.0,90439.0,0.0816]
[1731799138739,0.10906255,90465.0,90439.0,0.0816]
[1731799139013,0.10906255,90465.0,90464.0,0.110541]
[1731799139244,0.16578524,90467.0,90439.0,0.0816]
[1731799139245,0.16578524,90467.0,90458.0,0.221095]
[1731799139463,0.16578524,90467.0,90447.0,0.00221091]
[1731799139464,0.27484779,90467.0,90457.0,0.221098]
[1731799139685,0.27484779,90467.0,90445.0,0.16578524]
[1731799139686,0.221077,90466.0,90454.0,0.221106]
[1731799139895,0.27484779,90467.0,90445.0,0.16578524]
[1731799139896,0.38538579,90467.0,90445.0,0.16578524]
[1731799140139,0.27484779,90467.0,90462.0,0.110543]
[1731799140349,0.10906255,90467.0,90459.0,0.110546]
[1731799140567,0.10906255,90467.0,90445.0,0.16578524]
[1731799141031,0.10906255,90467.0,90453.0,0.221109]
[1731799141281,0.11054,90465.0,90458.0,0.110547]
[1731799141573,0.16578524,90472.0,90439.0,0.0816]
[1731799141574,0.16578524,90462.0,90439.0,0.0816]
[1731799141748,0.221097,90458.0,90433.0,0.16578524]
[1731799142019,0.110572,90438.0,90433.0,0.16578524]
[1731799142257,0.21963455,90438.0,90433.0,0.16578524]
[1731799142505,0.21963455,90438.0,90432.0,0.000857]
[1731799145274,0.22113,90445.0,90432.0,0.222016]
[1731799145538,0.10906255,90444.0,90432.0,0.222016]
[1731799145763,0.110568,90442.0,90435.0,0.110576]
[1731799145998,0.110568,90442.0,90432.0,0.222016]
[1731799145999,0.10906255,90441.0,90436.0,0.110575]
[1731799146231,0.10906255,90441.0,90432.0,0.222016]
[1731799146232,0.221141,90440.0,90432.0,0.000857]
[1731799146468,0.33020355,90440.0,90432.0,0.000857]
[1731799146689,0.110572,90438.0,90432.0,0.000857]
[1731799147157,0.221125,90447.0,90432.0,0.000857]
[1731799147389,0.221125,90447.0,90438.0,0.221145]
[1731799147390,0.10906255,90446.0,90438.0,0.221145]
[1731799147620,0.10906255,90446.0,90440.0,0.11057]
[1731799147621,0.21962555,90446.0,90440.0,0.11057]
[1731799147860,0.21962555,90446.0,90438.0,0.221145]
[1731799147861,0.110566,90444.0,90438.0,0.110572]
[1731799148544,0.110566,90444.0,90433.0,0.221158]
[1731799148770,0.110566,90444.0,90439.0,0.110571]
[1731799149310,0.21962655,90446.0,90439.0,0.110571]
[1731799149538,0.110565,90444.0,90439.0,0.110571]
[1731799149774,0.10906255,90446.0,90437.0,0.22280504]
[1731799149775,0.10906255,90446.0,90437.0,0.00165804]
[1731799150033,0.110572,90438.0,90437.0,0.00165804]
[1731799150268,0.21963455,90438.0,90437.0,0.00165804]
[1731799153329,0.110579,90433.0,90432.0,0.000857]
[1731799153565,0.10906255,90433.0,90432.0,0.000857]
[1731799154027,0.21964155,90433.0,90432.0,0.000857]
[1731799155471,0.22459644,90433.0,90432.0,0.000857]
[1731799155708,0.21964155,90433.0,90432.0,0.000857]
[1731799155935,0.22463964,90433.0,90432.0,0.000857]
[1731799158333,0.19463964,90433.0,90432.0,0.000857]
[1731799164700,0.22763964,90433.0,90432.0,0.000857]
[1731799167255,0.22935384,90433.0,90432.0,0.000857]
[1731799167674,0.11729129,90433.0,90432.0,0.000857]
[1731799167945,0.00671229,90433.0,90432.0,0.000857]
[1731799168176,0.00671229,90433.0,90432.0,0.189437]
[1731799168421,0.0017142,90433.0,90432.0,0.189437]
[1731799168669,0.17078524,90452.0,90432.0,0.078857]
[1731799168670,0.16578524,90452.0,90432.0,0.078857]
[1731799168873,0.16578524,90442.0,90432.0,0.078857]
[1731799169083,0.110565,90445.0,90436.0,0.110574]
[1731799169309,0.110565,90445.0,90434.0,0.221154]
[1731799169310,0.10906255,90451.0,90434.0,0.221154]
[1731799169556,0.110568,90442.0,90436.0,0.110575]
[1731799170269,0.221121,90448.0,90432.0,0.078857]
[1731799170270,0.110561,90448.0,90440.0,0.110569]
[1731799170496,0.16578524,90451.0,90432.0,0.078857]
[1731799170739,0.16578524,90451.0,90447.0,0.11056]
[1731799170987,0.09774989,90465.0,90434.0,0.221155]
[1731799170988,0.16578524,90459.0,90457.0,0.110548]
[1731799171199,0.16578524,90459.0,90458.0,0.110548]
[1731799171644,0.221072,90469.0,90448.0,0.0469]
[1731799171865,0.221072,90469.0,90449.0,0.221119]
[1731799172112,0.11054,90465.0,90458.0,0.110547]
[1731799172380,0.11054,90465.0,90448.0,0.0469]
[1731799172381,0.1122566,90463.0,90451.0,0.221114]
[1731799172599,0.1122566,90463.0,90456.0,0.11055]
[1731799172830,0.0017136,90463.0,90458.0,0.110547]
[1731799173048,0.0017136,90463.0,90448.0,0.0469]
[1731799173280,0.0017136,90463.0,90459.0,0.110546]
[1731799173509,0.0017136,90463.0,90456.0,0.331648]
[1731799173729,0.0017136,90463.0,90458.0,0.110547]
[1731799173954,0.0017136,90463.0,90456.0,0.221099]
[1731799174214,0.0017136,90463.0,90461.0,0.110544]
[1731799174428,0.0017136,90463.0,90459.0,0.110547]
[1731799174631,0.0017136,90463.0,90461.0,0.110544]
[1731799174862,0.0017136,90463.0,90456.0,0.221099]
[1731799175097,0.0017136,90463.0,90459.0,0.221094]
[1731799175297,0.0017136,90463.0,90462.0,0.110543]
[1731799176589,0.0017136,90463.0,90462.0,0.11275355]
[1731799177113,0.0017136,90463.0,90462.0,0.3570161]
[1731799177338,0.0017136,90463.0,90462.0,0.35480555]
[1731799177566,0.0017136,90463.0,90462.0,0.240743]
[1731799179328,0.0017136,90463.0,90462.0,0.35201606]
[1731799179549,0.0017136,90463.0,90462.0,0.34980555]
[1731799180694,0.0017136,90463.0,90462.0,0.240743]
[1731799181163,0.0017136,90463.0,90451.0,0.0804]
[1731799181825,0.0017136,90463.0,90462.0,0.110543]
[1731799183639,0.38683824,90476.0,90460.0,0.221092]
[1731799183640,0.110532,90472.0,90463.0,0.221082]
[1731799183911,0.110531,90472.0,90463.0,0.221082]
[1731799184138,0.110531,90472.0,90465.0,0.110539]
[1731799184364,0.221057,90474.0,90465.0,0.110539]
[1731799184365,0.110532,90471.0,90465.0,0.110539]
[1731799184583,0.110532,90471.0,90452.0,0.221111]
[1731799184584,0.221032,90485.0,90454.0,0.16578524]
[1731799184791,0.11077615,90482.0,90457.0,0.221099]
[1731799184967,0.11077615,90482.0,90481.0,0.11052]
[1731799185220,0.11077615,90482.0,90458.0,0.00221058]
[1731799185221,0.11077615,90482.0,90479.0,0.110522]
[1731799185425,0.11077615,90482.0,90475.0,0.221053]
[1731799185426,0.11077615,90482.0,90480.0,0.110521]
[1731799185647,0.11077615,90482.0,90466.0,0.221075]
[1731799185878,0.11077615,90482.0,90479.0,0.110522]
[1731799186083,0.11077615,90482.0,90478.0,0.110523]
[1731799186513,0.0017136,90482.0,90481.0,0.11052]
[1731799191757,0.1122336,90482.0,90476.0,0.110526]
[1731799191986,0.0017136,90482.0,90470.0,0.221065]
[1731799192226,0.0017136,90482.0,90463.0,0.0817568]
[1731799192227,0.16578524,90480.0,90463.0,0.0817568]
[1731799192392,0.0017136,90482.0,90463.0,0.0008568]
[1731799192393,0.110541,90464.0,90463.0,0.0008568]
[1731799193634,0.110539,90466.0,90463.0,0.0008568]
[1731799194228,0.110537,90468.0,90463.0,0.0008568]
[1731799194450,0.110536,90468.0,90463.0,0.0008568]
[1731799194671,0.221066,90471.0,90463.0,0.0008568]
[1731799194672,0.110538,90467.0,90463.0,0.0008568]
[1731799195625,0.38682724,90481.0,90463.0,0.2219398]
[1731799195626,0.16578524,90481.0,90463.0,0.2219398]
[1731799195855,0.16578524,90471.0,90463.0,0.0008568]
[1731799196070,0.10906255,90480.0,90463.0,0.0008568]
[1731799196525,0.110541,90464.0,90463.0,0.0008568]
[1731799196745,0.21960355,90464.0,90463.0,0.0008568]
[1731799198525,0.10906255,90464.0,90463.0,0.0008568]
[1731799198741,0.21960355,90464.0,90463.0,0.0008568]
[1731799199644,0.10906255,90464.0,90463.0,0.0008568]
[1731799199865,0.21960355,90464.0,90463.0,0.0008568]
[1731799203297,0.24760355,90464.0,90463.0,0.0008568]
[1731799203970,0.21960355,90464.0,90463.0,0.0008568]
[1731799204181,0.24760355,90464.0,90463.0,0.0008568]
[1731799204607,0.21960355,90464.0,90463.0,0.0008568]
[1731799206153,0.24760355,90464.0,90463.0,0.0008568]
[1731799206380,0.25260355,90464.0,90463.0,0.0008568]
[1731799207482,0.35260355,90464.0,90463.0,0.0008568]
[1731799207711,0.110563,90446.0,90445.0,0.00251475]
[1731799207923,0.21962555,90446.0,90445.0,0.00251475]
[1731799209360,0.24262555,90446.0,90445.0,0.00251475]
[1731799210235,0.24262555,90446.0,90445.0,0.000857]
[1731799210460,0.26803797,90446.0,90445.0,0.000857]
[1731799210745,0.34303797,90446.0,90445.0,0.000857]
[1731799212111,0.95446115,90446.0,90445.0,0.000857]
[1731799212557,0.7096795,90446.0,90445.0,0.000857]
[1731799212792,0.90555581,90446.0,90445.0,0.000857]
[1731799213024,0.49494819,90446.0,90445.0,0.000857]
[1731799213239,0.54391428,90446.0,90445.0,0.000857]
[1731799213461,0.23747497,90446.0,90445.0,0.000857]
[1731799213710,0.4969482,90446.0,90445.0,0.000857]
[1731799214141,0.34803797,90446.0,90445.0,0.000857]
[1731799214363,0.44596749,90446.0,90445.0,0.000857]
[1731799214588,0.34803797,90446.0,90445.0,0.000857]
[1731799214808,0.57269914,90446.0,90445.0,0.000857]
[1731799215449,0.47477139,90446.0,90445.0,0.000857]
[1731799215675,0.45435897,90446.0,90445.0,0.000857]
[1731799215929,0.37935897,90446.0,90445.0,0.000857]
[1731799217224,0.35462555,90446.0,90445.0,0.000857]
[1731799217888,0.45248352,90446.0,90445.0,0.000857]
[1731799218413,0.78557501,90446.0,90445.0,0.000857]
[1731799218643,0.86057501,90446.0,90445.0,0.000857]
[1731799218884,1.05074429,90446.0,90445.0,0.000857]
[1731799219130,1.05063811,90446.0,90445.0,0.000857]
[1731799219555,0.68956124,90446.0,90445.0,0.000857]
[1731799219787,1.05049283,90446.0,90445.0,0.000857]
[1731799220009,0.83622729,90446.0,90445.0,0.000857]
[1731799220254,0.68956281,90446.0,90445.0,0.000857]
[1731799220742,0.68957043,90446.0,90445.0,0.000857]
[1731799221181,0.68757043,90446.0,90445.0,0.000857]
[1731799222375,0.78532469,90446.0,90445.0,0.000857]
[1731799222607,0.01,90433.0,90432.0,0.000857]
[1731799222860,0.4632048,90433.0,90432.0,0.000857]
[1731799224433,0.44281083,90433.0,90432.0,0.000857]
[1731799224666,0.46320507,90433.0,90432.0,0.000857]
[1731799226836,0.46520507,90433.0,90432.0,0.000857]
[1731799227479,0.46320507,90433.0,90432.0,0.000857]
[1731799228410,0.56520507,90433.0,90432.0,0.000857]
[1731799228655,0.58594597,90433.0,90432.0,0.000857]
[1731799229096,0.48820507,90433.0,90432.0,0.000857]
[1731799229581,0.46581083,90433.0,90432.0,0.000857]
[1731799229805,0.5839767,90433.0,90432.0,0.000857]
[1731799230229,0.48622689,90433.0,90432.0,0.000857]
[1731799231563,0.46581083,90433.0,90432.0,0.000857]
[1731799231777,0.48623098,90433.0,90432.0,0.000857]
[1731799232939,0.48623098,90433.0,90402.0,0.161016]
[1731799232940,0.123,90432.0,90406.0,0.08827748]
[1731799233163,0.11061,90408.0,90406.0,0.08827748]
[1731799233380,0.13103015,90407.0,90406.0,0.08827748]
[1731799233597,0.13103015,90407.0,90406.0,0.120612]
[1731799233598,0.02042015,90407.0,90406.0,0.120612]
[1731799233826,0.10906255,90431.0,90413.0,0.005]
[1731799233827,0.110598,90417.0,90413.0,0.005]
[1731799234081,0.02042015,90416.0,90413.0,0.005]
[1731799234294,0.16578524,90419.0,90413.0,0.005]
[1731799234295,0.02042015,90415.0,90413.0,0.005]
[1731799234554,0.02042015,90414.0,90413.0,0.005]
[1731799234806,0.02042015,90414.0,90413.0,0.115603]
[1731799235766,0.02042015,90414.0,90413.0,0.120603]
[1731799236536,0.16578524,90419.0,90415.0,0.1106]
[1731799236759,0.21964455,90431.0,90425.0,0.110588]
[1731799237003,0.221155,90434.0,90424.0,0.0484]
[1731799237004,0.02047823,90430.0,90424.0,0.0484]
[1731799237216,0.221155,90434.0,90424.0,0.0484]
[1731799237217,0.02047823,90429.0,90424.0,0.0484]
[1731799237446,0.221157,90434.0,90424.0,0.0484]
[1731799237447,0.110588,90425.0,90424.0,0.0484]
[1731799237684,0.110588,90425.0,90416.0,0.0776]
[1731799237685,0.110598,90417.0,90416.0,0.0776]
[1731799237897,0.110598,90417.0,90403.0,0.005]
[1731799237898,0.12954078,90417.0,90407.0,0.078457]
[1731799238130,0.110609,90408.0,90407.0,0.078457]
[1731799238383,0.13108723,90408.0,90407.0,0.078457]
[1731799239753,0.16387554,90408.0,90407.0,0.078457]
[1731799240417,0.16387554,90408.0,90407.0,0.000857]
[1731799240656,0.39972501,90408.0,90407.0,0.000857]
[1731799241776,0.3669367,90408.0,90407.0,0.000857]
[1731799242484,0.24014978,90408.0,90407.0,0.000857]
[1731799243173,0.21967155,90408.0,90407.0,0.000857]
[1731799243408,0.24016884,90408.0,90407.0,0.000857]
[1731799243637,0.12955984,90408.0,90407.0,0.000857]
[1731799243890,0.13110629,90408.0,90407.0,0.000857]
[1731799244362,0.13110629,90408.0,90407.0,0.005857]
[1731799244363,0.02049729,90408.0,90407.0,0.005857]
[1731799244827,0.02049729,90408.0,90407.0,0.005907]
[1731799245775,0.02049729,90408.0,90407.0,0.116517]
[1731799246044,0.02049729,90408.0,90407.0,0.252117]
[1731799246279,0.16578524,90420.0,90407.0,0.252117]
[1731799246280,0.16578524,90420.0,90417.0,0.005]
[1731799246527,0.02050302,90419.0,90417.0,0.005]
[1731799246753,0.02050302,90418.0,90417.0,0.115598]
[1731799247465,0.02050302,90418.0,90417.0,0.01]
[1731799247737,0.02050302,90418.0,90417.0,0.120598]
[1731799250996,0.02050302,90418.0,90417.0,0.005]
[1731799251457,0.02049574,90418.0,90417.0,0.005]
[1731799251706,0.02049578,90418.0,90417.0,0.01]
[1731799251934,0.02049578,90418.0,90417.0,0.005]
[1731799252153,0.02049578,90418.0,90417.0,0.115598]
[1731799252612,0.02049578,90418.0,90417.0,0.005]
[1731799252864,0.02049578,90418.0,90408.0,0.303217]
[1731799252865,0.221197,90417.0,90408.0,0.082]
[1731799253097,0.110609,90408.0,90407.0,0.000907]
[1731799253558,0.27294946,90408.0,90407.0,0.000907]
[1731799253783,0.24016305,90408.0,90407.0,0.000907]
[1731799255140,0.24015283,90408.0,90407.0,0.000907]
[1731799256771,0.31967155,90408.0,90407.0,0.000907]
[1731799257015,0.34014613,90408.0,90407.0,0.000907]
[1731799257917,0.24014613,90408.0,90407.0,0.000907]
[1731799258852,0.21967155,90408.0,90407.0,0.000907]
[1731799260470,0.34645847,90408.0,90407.0,0.000907]
[1731799260946,0.90795939,90408.0,90407.0,0.000907]
[1731799261400,0.71124663,90408.0,90407.0,0.000907]
[1731799261827,0.58445971,90408.0,90407.0,0.000907]
[1731799262042,0.22138635,90408.0,90407.0,0.000907]
[1731799265653,0.32138635,90408.0,90407.0,0.000907]
[1731799265884,0.34438635,90408.0,90407.0,0.000907]
[1731799266104,0.95300835,90408.0,90407.0,0.000907]
[1731799266327,0.95295409,90408.0,90407.0,0.000907]
[1731799266532,0.70725047,90408.0,90407.0,0.000907]
[1731799267650,0.68425047,90408.0,90407.0,0.000907]
[1731799267867,0.22138635,90408.0,90407.0,0.000907]
[1731799268579,0.0017148,90408.0,90407.0,0.000907]
[1731799268792,0.0017148,90408.0,90407.0,0.078207]
[1731799269254,0.11077735,90408.0,90407.0,0.078207]
[1731799269465,0.22138635,90408.0,90407.0,0.000907]
[1731799269888,0.58410854,90408.0,90407.0,0.000907]
[1731799270341,0.47349954,90408.0,90406.0,0.00067006]
[1731799270555,0.58234593,90407.0,90406.0,0.00067006]
[1731799270777,0.21967255,90407.0,90406.0,0.00067006]
[1731799270997,0.3670474,90407.0,90406.0,0.00067006]
[1731799271419,0.21967255,90407.0,90406.0,0.00067006]
[1731799272167,0.31791796,90407.0,90406.0,0.00067006]
[1731799272631,0.21967255,90407.0,90406.0,0.00067006]
[1731799272877,0.54116876,90407.0,90406.0,0.00067006]
[1731799273083,0.70728971,90407.0,90406.0,0.00067006]
[1731799273551,0.59667971,90407.0,90406.0,0.00067006]
[1731799273756,0.70728971,90407.0,90406.0,0.00067006]
[1731799274228,0.90170931,90407.0,90406.0,0.00067006]
[1731799274445,0.21967255,90407.0,90406.0,0.00067006]
[1731799284038,0.34267255,90407.0,90406.0,0.00067006]
[1731799284278,0.9041413,90407.0,90406.0,0.00067006]
[1731799284530,0.70743241,90407.0,90406.0,0.00067006]
[1731799284757,0.90413,90407.0,90406.0,0.00067006]
[1731799285454,0.90413,90407.0,90404.0,0.0017128]
[1731799285455,0.110613,90405.0,90404.0,0.0017128]
[1731799285674,0.58272241,90405.0,90404.0,0.0017128]
[1731799285889,0.21967555,90405.0,90404.0,0.0017128]
[1731799286368,0.36719209,90405.0,90404.0,0.0017128]
[1731799286619,0.21967555,90405.0,90404.0,0.0017128]
[1731799287055,0.31801819,90405.0,90404.0,0.0017128]
[1731799287282,0.31802024,90405.0,90404.0,0.0017128]
[1731799287501,0.21967555,90405.0,90404.0,0.0017128]
[1731799288461,0.14267555,90405.0,90404.0,0.0017128]
[1731799288723,0.001713,90407.0,90405.0,0.0788]
[1731799288957,0.001713,90407.0,90406.0,0.110612]
[1731799289202,0.001713,90407.0,90406.0,0.115612]
[1731799290105,0.001713,90407.0,90405.0,0.0788]
[1731799290321,0.112324,90407.0,90405.0,0.0788]
[1731799290774,0.001713,90407.0,90405.0,0.0788]
[1731799291017,0.001713,90407.0,90405.0,0.189412]
[1731799291283,0.001713,90407.0,90405.0,0.0788]
[1731799292186,0.11077555,90407.0,90404.0,0.0017128]
[1731799292400,0.110613,90405.0,90404.0,0.0017128]
[1731799292595,0.21967555,90405.0,90404.0,0.0017128]
[1731799296547,0.31809769,90405.0,90404.0,0.0017128]
[1731799296760,0.21967555,90405.0,90404.0,0.0017128]
[1731799298536,0.58332052,90405.0,90404.0,0.0017128]
[1731799299214,0.82909045,90405.0,90404.0,0.0017128]
[1731799299449,0.58332052,90405.0,90404.0,0.0017128]
[1731799300563,0.21967555,90405.0,90404.0,0.0017128]
[1731799300780,0.58328735,90405.0,90404.0,0.0017128]
[1731799301924,0.82954296,90405.0,90404.0,0.0017128]
[1731799302146,0.82954278,90405.0,90404.0,0.0017128]
[1731799302581,0.58328735,90405.0,90404.0,0.0017128]
[1731799302873,0.78030121,90405.0,90404.0,0.0017128]
[1731799303009,0.58328735,90405.0,90404.0,0.0017128]
[1731799303482,0.14267555,90405.0,90404.0,0.0017128]
[1731799303695,0.21967555,90405.0,90404.0,0.0017128]
[1731799303960,0.110613,90405.0,90404.0,0.0017128]
[1731799305086,0.25836997,90405.0,90404.0,0.0017128]
[1731799305587,0.110613,90405.0,90404.0,0.0017128]
[1731799306516,0.25837375,90405.0,90404.0,0.0017128]
[1731799306737,0.110613,90405.0,90404.0,0.0017128]
[1731799309326,0.21967555,90405.0,90404.0,0.0017128]
[1731799309746,0.14776075,90405.0,90404.0,0.0017128]
[1731799309985,0.09850481,90406.0,90404.0,0.0017128]
[1731799310195,0.001713,90407.0,90404.0,0.1123268]
[1731799310470,0.001713,90407.0,90404.0,0.0017128]
[1731799310681,0.001713,90407.0,90405.0,0.0776]
[1731799311116,0.112323,90407.0,90405.0,0.0776]
[1731799311588,0.001713,90407.0,90406.0,0.115612]
[1731799312059,0.001713,90407.0,90406.0,0.198212]
[1731799312487,0.001713,90407.0,90406.0,0.244912]
[1731799312715,0.001713,90407.0,90406.0,0.35897455]
[1731799314078,0.001713,90407.0,90406.0,0.239912]
[1731799314322,0.001713,90407.0,90406.0,0.244912]
[1731799315944,0.001713,90407.0,90406.0,0.3561864]
[1731799316164,0.001713,90407.0,90406.0,0.35897455]
[1731799318622,0.09221304,90422.0,90421.0,0.193193]
[1731799319302,0.16578524,90432.0,90428.0,0.110585]
[1731799319527,0.16578524,90432.0,90425.0,0.226175]
[1731799319749,0.16578524,90432.0,90430.0,0.110582]
[1731799319959,0.16578524,90432.0,90428.0,0.110584]
[1731799320172,0.0017148,90433.0,90429.0,0.110583]
[1731799320401,0.0017148,90433.0,90427.0,0.005]
[1731799320633,0.0017148,90433.0,90430.0,0.110582]
[1731799320875,0.0017148,90433.0,90428.0,0.110584]
[1731799321332,0.0017148,90433.0,90432.0,0.11558]
[1731799321788,0.0017148,90433.0,90432.0,0.12058]
[1731799322022,0.0017148,90433.0,90432.0,0.19628]
[1731799328032,0.0017148,90433.0,90432.0,0.19849139]
[1731799328307,0.0017148,90433.0,90432.0,0.30755394]
[1731799328572,0.0017148,90433.0,90432.0,0.35094255]
[1731799329021,0.0017148,90433.0,90432.0,0.36094255]
[1731799329264,0.0017148,90433.0,90432.0,0.40664529]
[1731799329505,0.16578524,90445.0,90432.0,0.40664529]
[1731799329506,0.16115239,90445.0,90444.0,0.196265]
[1731799329996,0.001714,90446.0,90445.0,0.005]
[1731799330202,0.001714,90446.0,90445.0,0.12277495]
[1731799331141,0.001714,90446.0,90445.0,0.120564]
[1731799331363,0.001714,90446.0,90442.0,0.005]
[1731799331574,0.001714,90446.0,90444.0,0.005]
[1731799331798,0.001714,90446.0,90445.0,0.115564]
[1731799332443,0.001714,90446.0,90445.0,0.120564]
[1731799333582,0.16578524,90459.0,90442.0,0.221135]
[1731799333583,0.20104724,90459.0,90451.0,0.005]
[1731799333818,0.19956179,90459.0,90452.0,0.221111]
[1731799334035,0.19956179,90459.0,90451.0,0.005]
[1731799334266,0.19956179,90459.0,90454.0,0.110552]
[1731799334474,0.2227966,90464.0,90454.0,0.110552]
[1731799334475,0.0017136,90464.0,90457.0,0.005]
[1731799334710,0.0017136,90464.0,90458.0,0.221097]
[1731799334917,0.0017136,90464.0,90461.0,0.110544]
[1731799335131,0.0017136,90464.0,90462.0,0.110543]
[1731799336482,0.0017136,90464.0,90457.0,0.005]
[1731799336702,0.0017136,90464.0,90461.0,0.110544]
[1731799338425,0.0017136,90464.0,90459.0,0.221094]
[1731799338690,0.0017136,90464.0,90461.0,0.110544]
[1731799339358,0.0017136,90464.0,90459.0,0.221094]
[1731799339576,0.0017136,90464.0,90426.0,0.002]
[1731799339577,0.10906255,90463.0,90448.0,0.005]
[1731799339790,0.10906255,90463.0,90443.0,0.005]
[1731799339791,0.10906255,90463.0,90452.0,0.005]
[1731799340240,0.110551,90456.0,90452.0,0.005]
[1731799340485,0.221089,90461.0,90452.0,0.115555]
[1731799340726,0.110549,90458.0,90452.0,0.115555]
[1731799340943,0.10906255,90460.0,90452.0,0.115555]
[1731799341198,0.21960855,90460.0,90455.0,0.110551]
[1731799341673,0.110549,90458.0,90453.0,0.110554]
[1731799341924,0.33015555,90460.0,90452.0,0.005]
[1731799341925,0.11055,90457.0,90452.0,0.005]
[1731799342148,0.110548,90458.0,90452.0,0.005]
[1731799342374,0.110548,90458.0,90453.0,0.10914188]
[1731799342860,0.21960855,90460.0,90453.0,0.221109]
[1731799343098,0.21960855,90460.0,90455.0,0.110551]
[1731799343342,0.10906255,90460.0,90455.0,0.110551]
[1731799343564,0.110547,90459.0,90455.0,0.110551]
[1731799343797,0.21960955,90459.0,90453.0,0.110554]
[1731799344313,0.2227966,90464.0,90463.0,0.120542]
[1731799344314,0.0017136,90464.0,90463.0,0.120542]
[1731799348515,0.221043,90480.0,90469.0,0.005]
[1731799348723,0.16578524,90470.0,90469.0,0.005]
[1731799348944,0.11053,90473.0,90469.0,0.005]
[1731799349166,0.221045,90479.0,90469.0,0.005]
[1731799349167,0.10906255,90480.0,90471.0,0.005]
[1731799349611,0.110526,90477.0,90472.0,0.110531]
[1731799349860,0.10906255,90480.0,90475.0,0.110527]
[1731799350114,0.110523,90479.0,90474.0,0.110528]
[1731799350798,0.2227526,90482.0,90469.0,0.005]
[1731799350799,0.0017136,90482.0,90478.0,0.005]
[1731799351029,0.0017136,90482.0,90481.0,0.12052]
[1731799356084,0.0017136,90482.0,90476.0,0.005]
[1731799356297,0.0017136,90482.0,90475.0,0.005]
[1731799356298,0.0017136,90482.0,90481.0,0.005]
[1731799356555,0.0017136,90482.0,90481.0,0.01]
[1731799356783,0.0017136,90482.0,90481.0,0.12052]
[1731799358088,0.0017136,90482.0,90481.0,0.20143027]
[1731799358935,0.0017136,90482.0,90481.0,0.19922]
[1731799360335,0.0017136,90482.0,90481.0,0.31328255]
[1731799362343,0.0017136,90482.0,90481.0,0.35283305]
[1731799362572,0.0017136,90482.0,90481.0,0.35783305]
[1731799363551,0.16578524,90496.0,90495.0,0.005]
[1731799363552,0.09049884,90496.0,90495.0,0.005]
[1731799363774,0.09049884,90496.0,90495.0,0.115503]
[1731799363993,0.0017136,90499.0,90497.0,0.1105]
[1731799364646,0.0017136,90499.0,90497.0,0.1155]
[1731799365736,0.2227136,90498.0,90493.0,0.005]
[1731799365973,0.2227136,90498.0,90492.0,0.005]
[1731799366240,0.2227136,90498.0,90469.0,0.0489]
[1731799366241,0.110514,90486.0,90485.0,0.005]
[1731799366443,0.31604947,90497.0,90478.0,0.0008559]
[1731799366666,0.16578524,90496.0,90478.0,0.0008559]
[1731799366916,0.110522,90479.0,90478.0,0.0008559]
[1731799367609,0.110522,90479.0,90478.0,0.0058559]
[1731799367837,0.110522,90479.0,90478.0,0.0008559]
[1731799368485,0.110522,90479.0,90478.0,0.0058559]
[1731799368902,0.110522,90479.0,90478.0,0.0008559]
[1731799371361,0.221032,90485.0,90478.0,0.0008559]
[1731799371362,0.110518,90483.0,90478.0,0.1163779]
[1731799371565,0.221032,90485.0,90478.0,0.0058559]
[1731799372000,0.110521,90481.0,90478.0,0.0058559]
[1731799372870,0.110506,90493.0,90488.0,0.110511]
[1731799373087,0.16578524,90493.0,90491.0,0.115507]
[1731799373346,0.16578524,90493.0,90492.0,0.110507]
[1731799373559,0.16578524,90500.0,90491.0,0.005]
[1731799373790,0.16578524,90500.0,90492.0,0.110506]
[1731799374241,0.16578524,90500.0,90491.0,0.005]
[1731799374242,0.220982,90505.0,90495.0,0.115502]
[1731799374445,0.16749884,90509.0,90497.0,0.1205]
[1731799378462,0.16749884,90509.0,90497.0,0.01]
[1731799378463,0.09392604,90509.0,90497.0,0.01]
[1731799378665,0.09392604,90509.0,90507.0,0.110487]
[1731799379103,0.110484,90511.0,90503.0,0.220987]
[1731799379312,0.110484,90511.0,90506.0,0.110489]
[1731799379516,0.110484,90511.0,90503.0,0.220987]
[1731799379517,0.110481,90513.0,90507.0,0.110488]
[1731799379692,0.10906255,90512.0,90507.0,0.110488]
[1731799380155,0.21954555,90512.0,90505.0,0.11049]
[1731799381009,0.21954555,90512.0,90504.0,0.115492]
[1731799381010,0.110486,90510.0,90504.0,0.115492]
[1731799381913,0.110486,90509.0,90504.0,0.115492]
[1731799382148,0.220974,90508.0,90496.0,0.005]
[1731799382401,0.27484779,90509.0,90489.0,0.005]
[1731799382402,0.12678692,90497.0,90491.0,0.005]
[1731799382622,0.221006,90495.0,90489.0,0.17078524]
[1731799382825,0.12678692,90497.0,90493.0,0.005]
[1731799383051,0.110503,90495.0,90493.0,0.005]
[1731799383258,0.110503,90495.0,90494.0,0.005]